[Event "Late-Titled-Tuesday-Blitz-September-05-2023"]
[Site "Chess.com"]
[Date "2023.09.05"]
[Round "11"]
[White "NotFischer"]
[Black "Quattroporte300"]
[Result "1-0"]
[WhiteElo "2298"]
[BlackElo "2381"]
[TimeControl "180+1"]
[EndTime "16:04:56 PDT"]
[Termination "NotFischer won by resignation"]

1. e4 {[%clk 0:03:00.9]} 1... c5 {[%clk 0:02:58.2]} 2. Nf3 {[%clk 0:03:00.3]}
2... d6 {[%clk 0:02:58.4]} 3. d4 {[%clk 0:03:00.6]} 3... cxd4 {[%clk 0:02:58.6]}
4. Nxd4 {[%clk 0:03:01.5]} 4... Nf6 {[%clk 0:02:59.1]} 5. Nc3 {[%clk 0:03:01.9]}
5... a6 {[%clk 0:02:59.4]} 6. Bc4 {[%clk 0:03:01.8]} 6... Nbd7 {[%clk 0:02:58]}
7. f4 {[%clk 0:02:44.4]} 7... b5 {[%clk 0:02:54.8]} 8. Bb3 {[%clk 0:02:34.1]}
8... Nc5 {[%clk 0:02:48.8]} 9. O-O {[%clk 0:02:26.9]} 9... Bb7 {[%clk
0:02:41.9]} 10. e5 {[%clk 0:02:26.9]} 10... dxe5 {[%clk 0:02:39.3]} 11. fxe5
{[%clk 0:02:27.8]} 11... Nxb3 {[%clk 0:02:39.5]} 12. axb3 {[%clk 0:02:18.7]}
12... Nd5 {[%clk 0:02:38.8]} 13. e6 {[%clk 0:02:15.1]} 13... f6 {[%clk
0:02:34.8]} 14. Qg4 {[%clk 0:01:59.7]} 14... g6 {[%clk 0:02:31.5]} 15. Rd1
{[%clk 0:01:49.9]} 15... Nxc3 {[%clk 0:02:16.9]} 16. bxc3 {[%clk 0:01:48.9]}
16... Qc7 {[%clk 0:02:15.1]} 17. Bf4 {[%clk 0:01:35.3]} 17... Qxc3 {[%clk
0:02:13.9]} 18. Nf5 {[%clk 0:01:22.9]} 18... Qc5+ {[%clk 0:02:07.2]} 19. Ne3
{[%clk 0:01:21.2]} 19... Bg7 {[%clk 0:02:03.4]} 20. Rd7 {[%clk 0:01:17.9]} 20...
Bc6 {[%clk 0:01:47.5]} 21. Rc7 {[%clk 0:01:17.3]} 21... f5 {[%clk 0:01:44.1]}
22. Rxc6 {[%clk 0:00:58.3]} 22... Qxc6 {[%clk 0:01:36.5]} 23. Nxf5 {[%clk
0:00:56.6]} 23... Qc5+ {[%clk 0:01:36.4]} 24. Ne3 {[%clk 0:00:35.2]} 24... Bxa1
{[%clk 0:01:36.3]} 25. Bh6 {[%clk 0:00:34.7]} 25... Bd4 {[%clk 0:01:33.2]} 26.
Qf3 {[%clk 0:00:34.3]} 26... O-O-O {[%clk 0:01:20]} 27. Qa8+ {[%clk 0:00:30.4]}
27... Kc7 {[%clk 0:01:19.7]} 28. Bf4+ {[%clk 0:00:30.3]} 28... Be5 {[%clk
0:01:19.3]} 29. Bxe5+ {[%clk 0:00:19.6]} 29... Kb6 {[%clk 0:00:26]} 30. Qe4
{[%clk 0:00:19.2]} 30... Rhf8 {[%clk 0:00:22.2]} 31. h3 {[%clk 0:00:18.5]} 31...
Rd2 {[%clk 0:00:19.1]} 32. c3 {[%clk 0:00:16.4]} 32... Re2 {[%clk 0:00:18.3]}
33. Bd4 {[%clk 0:00:16.1]} 33... Rxe3 {[%clk 0:00:10.6]} 34. Qxe3 {[%clk
0:00:15.9]} 1-0

[Event "Late-Titled-Tuesday-Blitz-September-05-2023"]
[Site "Chess.com"]
[Date "2023.09.05"]
[Round "11"]
[White "IMRosen"]
[Black "geordie_derraugh"]
[Result "1-0"]
[WhiteElo "2621"]
[BlackElo "2502"]
[TimeControl "180+1"]
[EndTime "16:05:01 PDT"]
[Termination "IMRosen won on time"]

1. e3 {[%clk 0:03:00.9]} 1... d5 {[%clk 0:02:59]} 2. Ne2 {[%clk 0:03:01.8]} 2...
Nf6 {[%clk 0:02:59]} 3. d3 {[%clk 0:03:02.1]} 3... c5 {[%clk 0:02:58.9]} 4. Nd2
{[%clk 0:03:02.5]} 4... Nc6 {[%clk 0:02:59]} 5. Nb3 {[%clk 0:03:03.1]} 5... e5
{[%clk 0:02:58.1]} 6. Ng3 {[%clk 0:03:03.1]} 6... Bd6 {[%clk 0:02:55.4]} 7. Be2
{[%clk 0:03:03.4]} 7... O-O {[%clk 0:02:55.3]} 8. O-O {[%clk 0:02:56.7]} 8... b5
{[%clk 0:02:49.4]} 9. e4 {[%clk 0:02:54.4]} 9... dxe4 {[%clk 0:02:42]} 10. dxe4
{[%clk 0:02:49.1]} 10... c4 {[%clk 0:02:41.7]} 11. Nd2 {[%clk 0:02:46]} 11...
Nd4 {[%clk 0:02:27.1]} 12. a4 {[%clk 0:02:37.7]} 12... Nxe2+ {[%clk 0:02:14.4]}
13. Qxe2 {[%clk 0:02:36.5]} 13... c3 {[%clk 0:02:05.7]} 14. bxc3 {[%clk
0:02:34.6]} 14... bxa4 {[%clk 0:02:05.6]} 15. Rxa4 {[%clk 0:02:31.8]} 15... Be6
{[%clk 0:02:03.2]} 16. Nf5 {[%clk 0:02:18.6]} 16... Bxf5 {[%clk 0:01:53.8]} 17.
exf5 {[%clk 0:02:19.5]} 17... Qd7 {[%clk 0:01:53.7]} 18. Ra6 {[%clk 0:02:15.2]}
18... Rfd8 {[%clk 0:01:20]} 19. Ne4 {[%clk 0:02:07]} 19... Be7 {[%clk
0:01:17.4]} 20. Nxf6+ {[%clk 0:01:47.1]} 20... Bxf6 {[%clk 0:01:18.3]} 21. Qg4
{[%clk 0:01:47.5]} 21... Qe7 {[%clk 0:01:02.3]} 22. Ba3 {[%clk 0:01:32.8]} 22...
h5 {[%clk 0:00:34.3]} 23. Bxe7 {[%clk 0:01:25.4]} 23... hxg4 {[%clk 0:00:33.1]}
24. Bxd8 {[%clk 0:01:26]} 24... Rxd8 {[%clk 0:00:26]} 25. Rxa7 {[%clk
0:01:22.2]} 25... Rc8 {[%clk 0:00:25.9]} 26. Ra3 {[%clk 0:01:17]} 26... Bg5
{[%clk 0:00:16.9]} 27. Rd1 {[%clk 0:01:13.6]} 27... Rb8 {[%clk 0:00:07.2]} 28.
Rb3 {[%clk 0:01:10.2]} 28... Rc8 {[%clk 0:00:06.6]} 29. Kf1 {[%clk 0:01:10]}
29... Bf6 {[%clk 0:00:04.5]} 30. Ke2 {[%clk 0:01:09.4]} 30... Kh7 {[%clk
0:00:04.5]} 31. Rd7 {[%clk 0:01:03.5]} 31... Kh6 {[%clk 0:00:03.4]} 32. Rxf7
{[%clk 0:00:43.3]} 32... Kg5 {[%clk 0:00:03.6]} 33. Ra7 {[%clk 0:00:44.1]} 33...
Kxf5 {[%clk 0:00:03.7]} 34. Ra4 {[%clk 0:00:44.9]} 34... Rh8 {[%clk 0:00:02.4]}
35. h3 {[%clk 0:00:27.8]} 35... gxh3 {[%clk 0:00:02.3]} 36. gxh3 {[%clk
0:00:28.7]} 36... Rxh3 {[%clk 0:00:02.4]} 37. c4 {[%clk 0:00:28.2]} 37... Rh2
{[%clk 0:00:02.2]} 38. c5 {[%clk 0:00:26.4]} 38... Bh4 {[%clk 0:00:01.5]} 39.
Rf3+ {[%clk 0:00:26.3]} 39... Ke6 {[%clk 0:00:01.7]} 40. c6 {[%clk 0:00:24]}
40... Kd6 {[%clk 0:00:01.6]} 41. Rc4 {[%clk 0:00:24.4]} 1-0

[Event "Late-Titled-Tuesday-Blitz-September-05-2023"]
[Site "Chess.com"]
[Date "2023.09.05"]
[Round "11"]
[White "2k28Lakers"]
[Black "grzechu96"]
[Result "1-0"]
[WhiteElo "2555"]
[BlackElo "2661"]
[TimeControl "180+1"]
[EndTime "16:05:03 PDT"]
[Termination "2k28Lakers won on time"]

1. e4 {[%clk 0:03:00.9]} 1... c5 {[%clk 0:02:58.7]} 2. c3 {[%clk 0:03:00.8]}
2... Nf6 {[%clk 0:02:54.1]} 3. e5 {[%clk 0:03:00.8]} 3... Nd5 {[%clk 0:02:54.4]}
4. Nf3 {[%clk 0:03:01.7]} 4... d6 {[%clk 0:02:47.4]} 5. d4 {[%clk 0:03:01.5]}
5... cxd4 {[%clk 0:02:46.9]} 6. Bc4 {[%clk 0:03:02.1]} 6... e6 {[%clk 0:02:47]}
7. cxd4 {[%clk 0:02:58.7]} 7... Nc6 {[%clk 0:02:45.6]} 8. O-O {[%clk 0:02:58.7]}
8... Be7 {[%clk 0:02:45.8]} 9. Qe2 {[%clk 0:02:58.3]} 9... O-O {[%clk
0:02:45.2]} 10. Rd1 {[%clk 0:02:58.2]} 10... Na5 {[%clk 0:02:45.4]} 11. Bd3
{[%clk 0:02:56.2]} 11... Nb4 {[%clk 0:02:45.4]} 12. exd6 {[%clk 0:02:50.8]}
12... Qxd6 {[%clk 0:02:25.2]} 13. Be4 {[%clk 0:02:50.6]} 13... f5 {[%clk
0:02:02.7]} 14. Bc2 {[%clk 0:02:50.3]} 14... Nxc2 {[%clk 0:01:59.6]} 15. Qxc2
{[%clk 0:02:51.2]} 15... b6 {[%clk 0:01:54.8]} 16. d5 {[%clk 0:02:47.6]} 16...
exd5 {[%clk 0:01:30.5]} 17. Nc3 {[%clk 0:02:47.2]} 17... Bb7 {[%clk 0:01:23.6]}
18. Nd4 {[%clk 0:02:44]} 18... g6 {[%clk 0:01:01]} 19. Bh6 {[%clk 0:02:43.1]}
19... Rfe8 {[%clk 0:01:01.2]} 20. Re1 {[%clk 0:02:42.7]} 20... Bf6 {[%clk
0:00:59.4]} 21. Qd2 {[%clk 0:02:42.6]} 21... Nc4 {[%clk 0:00:59.2]} 22. Ndb5
{[%clk 0:02:25.7]} 22... Qxh2+ {[%clk 0:00:38.7]} 23. Kxh2 {[%clk 0:02:22.6]}
23... Nxd2 {[%clk 0:00:39.1]} 24. Bxd2 {[%clk 0:02:17.4]} 24... d4 {[%clk
0:00:31.3]} 25. Ne2 {[%clk 0:02:06.4]} 25... Rad8 {[%clk 0:00:21.2]} 26. Rac1
{[%clk 0:01:24.4]} 26... a6 {[%clk 0:00:17.6]} 27. Na3 {[%clk 0:01:12.7]} 27...
b5 {[%clk 0:00:17.9]} 28. Nf4 {[%clk 0:01:03.3]} 28... Rxe1 {[%clk 0:00:17.2]}
29. Rxe1 {[%clk 0:01:03.1]} 29... Kf7 {[%clk 0:00:16.6]} 30. Nc2 {[%clk
0:00:58.7]} 30... g5 {[%clk 0:00:15.6]} 31. Nh5 {[%clk 0:00:49.3]} 31... Be7
{[%clk 0:00:15.2]} 32. Rxe7+ {[%clk 0:00:47.3]} 32... Kxe7 {[%clk 0:00:16.1]}
33. Bxg5+ {[%clk 0:00:47.8]} 33... Kd7 {[%clk 0:00:15.7]} 34. Bxd8 {[%clk
0:00:48.1]} 34... d3 {[%clk 0:00:14.3]} 35. Ne3 {[%clk 0:00:47]} 35... Kxd8
{[%clk 0:00:13.7]} 36. Nf4 {[%clk 0:00:46.2]} 36... d2 {[%clk 0:00:13.8]} 37. f3
{[%clk 0:00:44]} 37... Ke7 {[%clk 0:00:08.4]} 38. Kg3 {[%clk 0:00:44.5]} 38...
Kd6 {[%clk 0:00:08.4]} 39. Kf2 {[%clk 0:00:44.9]} 39... Ke5 {[%clk 0:00:08.3]}
40. Nd3+ {[%clk 0:00:40]} 40... Kd4 {[%clk 0:00:08.7]} 41. Ke2 {[%clk
0:00:40.4]} 41... Bc8 {[%clk 0:00:01.4]} 42. Kxd2 {[%clk 0:00:39.7]} 42... Be6
{[%clk 0:00:01.9]} 43. b3 {[%clk 0:00:37.9]} 1-0

[Event "Late-Titled-Tuesday-Blitz-September-05-2023"]
[Site "Chess.com"]
[Date "2023.09.05"]
[Round "11"]
[White "willyam13"]
[Black "NovikovaGalina"]
[Result "1/2-1/2"]
[WhiteElo "2482"]
[BlackElo "2413"]
[TimeControl "180+1"]
[EndTime "16:05:04 PDT"]
[Termination "Game drawn by repetition"]

1. e4 {[%clk 0:02:57.3]} 1... e6 {[%clk 0:03:00.4]} 2. d4 {[%clk 0:02:56.6]}
2... d5 {[%clk 0:03:01.3]} 3. Nc3 {[%clk 0:02:56.6]} 3... Bb4 {[%clk 0:03:00.7]}
4. e5 {[%clk 0:02:56.7]} 4... c5 {[%clk 0:03:00.3]} 5. a3 {[%clk 0:02:57.3]}
5... Bxc3+ {[%clk 0:03:01]} 6. bxc3 {[%clk 0:02:58]} 6... Ne7 {[%clk 0:03:01.8]}
7. Nf3 {[%clk 0:02:58.3]} 7... Bd7 {[%clk 0:03:00.5]} 8. a4 {[%clk 0:02:57.1]}
8... b6 {[%clk 0:02:56.4]} 9. Bb5 {[%clk 0:02:51]} 9... Bxb5 {[%clk 0:02:51.7]}
10. axb5 {[%clk 0:02:50.5]} 10... Nd7 {[%clk 0:02:52.5]} 11. h4 {[%clk
0:02:41.9]} 11... Qc7 {[%clk 0:02:50.4]} 12. Bd2 {[%clk 0:02:38.6]} 12... h6
{[%clk 0:02:49.7]} 13. O-O {[%clk 0:02:35.1]} 13... Rc8 {[%clk 0:02:43.7]} 14.
Ra2 {[%clk 0:02:25.7]} 14... Rd8 {[%clk 0:02:34.5]} 15. Qa1 {[%clk 0:02:21.4]}
15... Nc8 {[%clk 0:02:33.4]} 16. h5 {[%clk 0:02:09.2]} 16... Nf8 {[%clk
0:02:27.9]} 17. Re1 {[%clk 0:02:07.9]} 17... Nh7 {[%clk 0:02:27.3]} 18. Qd1
{[%clk 0:01:53.5]} 18... Qe7 {[%clk 0:02:27.2]} 19. Qe2 {[%clk 0:01:52.3]} 19...
Ng5 {[%clk 0:02:26.1]} 20. Nh2 {[%clk 0:01:45.3]} 20... O-O {[%clk 0:02:13.1]}
21. Ng4 {[%clk 0:01:41.4]} 21... Kh8 {[%clk 0:01:47.7]} 22. f3 {[%clk
0:01:39.8]} 22... Nh7 {[%clk 0:01:38]} 23. Qf2 {[%clk 0:01:35.1]} 23... Qd7
{[%clk 0:01:35.1]} 24. Rb1 {[%clk 0:01:29.4]} 24... Ne7 {[%clk 0:01:35.2]} 25.
dxc5 {[%clk 0:01:22.1]} 25... bxc5 {[%clk 0:01:30]} 26. Qxc5 {[%clk 0:01:23]}
26... Nf5 {[%clk 0:01:19.5]} 27. Rxa7 {[%clk 0:01:18.5]} 27... Qe8 {[%clk
0:01:15.6]} 28. b6 {[%clk 0:01:14.7]} 28... Rc8 {[%clk 0:01:16.2]} 29. Rc7
{[%clk 0:01:13.7]} 29... Rb8 {[%clk 0:01:15.7]} 30. b7 {[%clk 0:01:12.9]} 30...
Ng3 {[%clk 0:01:08.9]} 31. Rb6 {[%clk 0:00:25.7]} 31... Nxh5 {[%clk 0:01:05.6]}
32. Rbc6 {[%clk 0:00:23.6]} 32... Rxb7 {[%clk 0:00:45.8]} 33. Rxb7 {[%clk
0:00:22.7]} 33... Qa8 {[%clk 0:00:46.7]} 34. Ra7 {[%clk 0:00:20.5]} 34... Qb8
{[%clk 0:00:46.2]} 35. Rb6 {[%clk 0:00:19.2]} 35... Qd8 {[%clk 0:00:46.8]} 36.
Rbb7 {[%clk 0:00:16.1]} 36... Qh4 {[%clk 0:00:45.3]} 37. Rxf7 {[%clk 0:00:14.5]}
37... Rb8 {[%clk 0:00:44.5]} 38. Rfb7 {[%clk 0:00:12.4]} 38... Rg8 {[%clk
0:00:40.9]} 39. Rc7 {[%clk 0:00:11.6]} 39... Ng3 {[%clk 0:00:40.7]} 40. Rc8
{[%clk 0:00:10.1]} 40... Ne2+ {[%clk 0:00:39.1]} 41. Kf1 {[%clk 0:00:09.5]}
41... Ng3+ {[%clk 0:00:39.3]} 42. Kg1 {[%clk 0:00:06.9]} 42... Ne2+ {[%clk
0:00:39.3]} 43. Kf1 {[%clk 0:00:05.2]} 43... Ng3+ {[%clk 0:00:39.9]} 44. Kg1
{[%clk 0:00:03.5]} 1/2-1/2

[Event "Late-Titled-Tuesday-Blitz-September-05-2023"]
[Site "Chess.com"]
[Date "2023.09.05"]
[Round "11"]
[White "Msb2"]
[Black "Firouzja2003"]
[Result "1/2-1/2"]
[WhiteElo "3110"]
[BlackElo "3147"]
[TimeControl "180+1"]
[EndTime "16:05:05 PDT"]
[Termination "Game drawn by agreement"]

1. d4 {[%clk 0:03:00.9]} 1... Nf6 {[%clk 0:03:00.1]} 2. c4 {[%clk 0:03:01.4]}
2... e6 {[%clk 0:03:00.7]} 3. Nc3 {[%clk 0:03:02]} 3... Bb4 {[%clk 0:02:59.4]}
4. e3 {[%clk 0:03:02.6]} 4... O-O {[%clk 0:02:58.3]} 5. Bd2 {[%clk 0:03:03.1]}
5... c5 {[%clk 0:02:54.1]} 6. a3 {[%clk 0:03:03.1]} 6... Bxc3 {[%clk 0:02:54.4]}
7. Bxc3 {[%clk 0:03:04]} 7... Ne4 {[%clk 0:02:54.4]} 8. Ne2 {[%clk 0:03:04.7]}
8... b6 {[%clk 0:02:54.2]} 9. d5 {[%clk 0:03:05.1]} 9... Ba6 {[%clk 0:02:51.6]}
10. Qd3 {[%clk 0:03:05.3]} 10... exd5 {[%clk 0:02:44.3]} 11. Qxd5 {[%clk
0:03:06.2]} 11... Qe7 {[%clk 0:02:42.9]} 12. b3 {[%clk 0:03:06.8]} 12... Nc6
{[%clk 0:02:36.6]} 13. Bb2 {[%clk 0:03:06.6]} 13... Na5 {[%clk 0:02:23.8]} 14.
Ng3 {[%clk 0:02:50.8]} 14... Nf6 {[%clk 0:02:17.4]} 15. Qg5 {[%clk 0:02:42]}
15... Qd8 {[%clk 0:01:22.6]} 16. Nf5 {[%clk 0:02:33.3]} 16... Ne8 {[%clk
0:01:22.9]} 17. Qg3 {[%clk 0:02:06.9]} 17... f6 {[%clk 0:01:21.8]} 18. e4 {[%clk
0:01:57.6]} 18... Bb7 {[%clk 0:01:16.1]} 19. b4 {[%clk 0:01:43.4]} 19... Nc6
{[%clk 0:01:07]} 20. bxc5 {[%clk 0:01:24.6]} 20... bxc5 {[%clk 0:01:06.3]} 21.
Be2 {[%clk 0:01:25.2]} 21... Ne5 {[%clk 0:00:44.3]} 22. Bxe5 {[%clk 0:01:21.6]}
22... fxe5 {[%clk 0:00:44.6]} 23. Qxe5 {[%clk 0:01:22.1]} 23... d6 {[%clk
0:00:42.7]} 24. Qe6+ {[%clk 0:01:17.9]} 24... Kh8 {[%clk 0:00:40]} 25. O-O
{[%clk 0:01:08.8]} 25... g6 {[%clk 0:00:32]} 26. Ng3 {[%clk 0:00:59.3]} 26...
Bc8 {[%clk 0:00:17.6]} 27. Qd5 {[%clk 0:00:59.4]} 27... Nc7 {[%clk 0:00:16.4]}
28. Qd2 {[%clk 0:00:59.1]} 28... Ne6 {[%clk 0:00:16.7]} 29. Rad1 {[%clk
0:00:52]} 29... Nd4 {[%clk 0:00:17]} 30. Bd3 {[%clk 0:00:52.6]} 30... Bg4 {[%clk
0:00:13.7]} 31. f3 {[%clk 0:00:52.8]} 31... Bxf3 {[%clk 0:00:14.1]} 32. gxf3
{[%clk 0:00:48.5]} 32... Nxf3+ {[%clk 0:00:15]} 33. Rxf3 {[%clk 0:00:48.7]}
33... Rxf3 {[%clk 0:00:15.9]} 34. Be2 {[%clk 0:00:49.1]} 34... Rf8 {[%clk
0:00:11.1]} 35. Qc3+ {[%clk 0:00:45.6]} 35... Qf6 {[%clk 0:00:10.4]} 36. Qxf6+
{[%clk 0:00:44.9]} 36... Rxf6 {[%clk 0:00:11.3]} 37. Rb1 {[%clk 0:00:44.2]}
37... Re8 {[%clk 0:00:10.5]} 38. Kg2 {[%clk 0:00:39.8]} 38... h5 {[%clk
0:00:09.8]} 39. Bf3 {[%clk 0:00:32.6]} 39... Ref8 {[%clk 0:00:09.4]} 40. Rb3
{[%clk 0:00:32.5]} 40... Kg7 {[%clk 0:00:08.8]} 1/2-1/2

[Event "Late-Titled-Tuesday-Blitz-September-05-2023"]
[Site "Chess.com"]
[Date "2023.09.05"]
[Round "11"]
[White "RIPOL"]
[Black "jk13"]
[Result "0-1"]
[WhiteElo "2459"]
[BlackElo "2703"]
[TimeControl "180+1"]
[EndTime "16:05:07 PDT"]
[Termination "jk13 won by resignation"]

1. d4 {[%clk 0:02:59.2]} 1... Nf6 {[%clk 0:02:58.7]} 2. c4 {[%clk 0:02:58]} 2...
e6 {[%clk 0:02:59.3]} 3. Nc3 {[%clk 0:02:57.2]} 3... Bb4 {[%clk 0:02:59.8]} 4.
f3 {[%clk 0:02:56.7]} 4... O-O {[%clk 0:02:56.8]} 5. e3 {[%clk 0:02:48.2]} 5...
d5 {[%clk 0:02:55]} 6. a3 {[%clk 0:02:47]} 6... Bxc3+ {[%clk 0:02:52.1]} 7. bxc3
{[%clk 0:02:46.9]} 7... c5 {[%clk 0:02:53]} 8. cxd5 {[%clk 0:02:45.3]} 8... exd5
{[%clk 0:02:52.9]} 9. Bd3 {[%clk 0:02:44.5]} 9... b6 {[%clk 0:02:53.6]} 10. Ne2
{[%clk 0:02:43.9]} 10... Ba6 {[%clk 0:02:54.2]} 11. O-O {[%clk 0:02:43.4]} 11...
Re8 {[%clk 0:02:54]} 12. Ng3 {[%clk 0:02:41.3]} 12... Qc8 {[%clk 0:02:50.1]} 13.
Ra2 {[%clk 0:02:07.1]} 13... Bxd3 {[%clk 0:02:48.1]} 14. Qxd3 {[%clk 0:02:05.8]}
14... Qa6 {[%clk 0:02:49]} 15. Qd1 {[%clk 0:02:02.2]} 15... Qc4 {[%clk
0:02:47.8]} 16. Rc2 {[%clk 0:01:56]} 16... Nc6 {[%clk 0:02:46.6]} 17. Bb2 {[%clk
0:01:48.8]} 17... Rxe3 {[%clk 0:02:41.6]} 18. Nf5 {[%clk 0:01:45.1]} 18... Re6
{[%clk 0:02:37.2]} 19. Qd2 {[%clk 0:01:34.2]} 19... h6 {[%clk 0:02:31.9]} 20. g4
{[%clk 0:01:31.2]} 20... Rae8 {[%clk 0:02:17.2]} 21. Rf2 {[%clk 0:01:15.9]}
21... Nh7 {[%clk 0:01:57.5]} 22. h4 {[%clk 0:01:14.1]} 22... Qa2 {[%clk
0:01:04]} 23. Kg2 {[%clk 0:00:58.5]} 23... Re1 {[%clk 0:00:55.9]} 24. Bc1 {[%clk
0:00:54.3]} 24... Qc4 {[%clk 0:00:54.2]} 25. Qf4 {[%clk 0:00:34.6]} 25... Qd3
{[%clk 0:00:35.3]} 26. Nd6 {[%clk 0:00:31.8]} 26... Rf8 {[%clk 0:00:28.6]} 27.
dxc5 {[%clk 0:00:30.1]} 27... Qd1 {[%clk 0:00:20.7]} 28. Qh2 {[%clk 0:00:19.2]}
28... bxc5 {[%clk 0:00:18.9]} 29. Bf4 {[%clk 0:00:17.6]} 29... Qd3 {[%clk
0:00:15.6]} 30. Rcd2 {[%clk 0:00:16.1]} 30... Qb1 {[%clk 0:00:15.5]} 31. Rxd5
{[%clk 0:00:15.2]} 31... Nf6 {[%clk 0:00:15.4]} 32. Rf5 {[%clk 0:00:13.4]} 32...
Rd8 {[%clk 0:00:12.5]} 33. Rxf6 {[%clk 0:00:10.8]} 33... gxf6 {[%clk 0:00:13.4]}
34. Bxh6 {[%clk 0:00:09.5]} 34... Ne5 {[%clk 0:00:14]} 35. Nf5 {[%clk
0:00:07.3]} 35... Rdd1 {[%clk 0:00:13.4]} 36. g5 {[%clk 0:00:02.9]} 36... Rg1+
{[%clk 0:00:13.1]} 37. Kh3 {[%clk 0:00:03.1]} 37... Rh1 {[%clk 0:00:13.6]} 0-1

[Event "Late-Titled-Tuesday-Blitz-September-05-2023"]
[Site "Chess.com"]
[Date "2023.09.05"]
[Round "11"]
[White "Jenia84"]
[Black "WPWPWP-2015"]
[Result "0-1"]
[WhiteElo "2361"]
[BlackElo "2548"]
[TimeControl "180+1"]
[EndTime "16:05:11 PDT"]
[Termination "WPWPWP-2015 won by resignation"]

1. e4 {[%clk 0:02:56.3]} 1... c5 {[%clk 0:02:59.5]} 2. Nf3 {[%clk 0:02:55.9]}
2... d6 {[%clk 0:02:59.6]} 3. d4 {[%clk 0:02:56]} 3... cxd4 {[%clk 0:02:59.8]}
4. Nxd4 {[%clk 0:02:56.5]} 4... Nf6 {[%clk 0:03:00]} 5. Nc3 {[%clk 0:02:56.4]}
5... a6 {[%clk 0:03:00.2]} 6. f3 {[%clk 0:02:56.2]} 6... e6 {[%clk 0:02:59.3]}
7. Be3 {[%clk 0:02:55.1]} 7... Be7 {[%clk 0:02:59]} 8. Qd2 {[%clk 0:02:55.6]}
8... b5 {[%clk 0:02:58.8]} 9. a3 {[%clk 0:02:53.7]} 9... Qc7 {[%clk 0:02:58.5]}
10. g4 {[%clk 0:02:54]} 10... h6 {[%clk 0:02:57.4]} 11. h4 {[%clk 0:02:53.6]}
11... Nbd7 {[%clk 0:02:53.1]} 12. O-O-O {[%clk 0:02:52.6]} 12... Ne5 {[%clk
0:02:51.9]} 13. Be2 {[%clk 0:02:52.2]} 13... Bb7 {[%clk 0:02:47.5]} 14. g5
{[%clk 0:02:51.2]} 14... Nfd7 {[%clk 0:02:39.8]} 15. f4 {[%clk 0:02:51]} 15...
Nc4 {[%clk 0:02:37.1]} 16. Ndxb5 {[%clk 0:02:41.5]} 16... axb5 {[%clk
0:02:32.4]} 17. Nxb5 {[%clk 0:02:41.5]} 17... Qc6 {[%clk 0:02:28.6]} 18. Bxc4
{[%clk 0:02:36.8]} 18... Qxc4 {[%clk 0:02:27.4]} 19. Nxd6+ {[%clk 0:02:36.8]}
19... Bxd6 {[%clk 0:02:24.3]} 20. Qxd6 {[%clk 0:02:36.8]} 20... Qc6 {[%clk
0:02:18]} 21. Qd4 {[%clk 0:02:16.3]} 21... e5 {[%clk 0:02:02.3]} 22. fxe5 {[%clk
0:02:05.1]} 22... Rc8 {[%clk 0:01:43.4]} 23. c3 {[%clk 0:02:00]} 23... Nf8
{[%clk 0:01:36.4]} 24. gxh6 {[%clk 0:01:54.5]} 24... gxh6 {[%clk 0:01:29.6]} 25.
e6 {[%clk 0:01:51.2]} 25... Rh7 {[%clk 0:01:22.1]} 26. exf7+ {[%clk 0:01:23.1]}
26... Rxf7 {[%clk 0:01:21.5]} 27. Rhf1 {[%clk 0:01:22.5]} 27... Qxe4 {[%clk
0:01:05.3]} 28. Rxf7 {[%clk 0:01:12.8]} 28... Kxf7 {[%clk 0:01:04]} 29. Rf1+
{[%clk 0:01:05.7]} 29... Ke8 {[%clk 0:01:01.1]} 30. Qxe4+ {[%clk 0:00:41.7]}
30... Bxe4 {[%clk 0:01:00.1]} 31. Bxh6 {[%clk 0:00:41.8]} 31... Ne6 {[%clk
0:00:58]} 32. Re1 {[%clk 0:00:39.1]} 32... Bd5 {[%clk 0:00:52.6]} 33. Be3 {[%clk
0:00:38.1]} 33... Bb3 {[%clk 0:00:46.9]} 34. h5 {[%clk 0:00:38]} 34... Kf7
{[%clk 0:00:44.2]} 35. h6 {[%clk 0:00:38.2]} 35... Kg6 {[%clk 0:00:42]} 36. Rg1+
{[%clk 0:00:33.9]} 36... Kh7 {[%clk 0:00:41.3]} 37. Rg4 {[%clk 0:00:32.7]} 37...
Rd8 {[%clk 0:00:39.2]} 38. Bd4 {[%clk 0:00:27.7]} 38... Kxh6 {[%clk 0:00:36.8]}
39. Kd2 {[%clk 0:00:24.3]} 39... Kh5 {[%clk 0:00:32.7]} 40. Re4 {[%clk
0:00:23.9]} 40... Kg6 {[%clk 0:00:30.7]} 41. Ke3 {[%clk 0:00:20]} 41... Kf7
{[%clk 0:00:29.5]} 42. Re5 {[%clk 0:00:19.6]} 42... Rg8 {[%clk 0:00:26.6]} 43.
Rb5 {[%clk 0:00:19.1]} 43... Bc4 {[%clk 0:00:24.8]} 44. Rb7+ {[%clk 0:00:18.3]}
44... Kg6 {[%clk 0:00:24.8]} 45. a4 {[%clk 0:00:18.3]} 45... Ra8 {[%clk
0:00:23.3]} 46. b3 {[%clk 0:00:17]} 46... Bd5 {[%clk 0:00:21.4]} 47. c4 {[%clk
0:00:17.4]} 47... Bxb7 {[%clk 0:00:21.2]} 0-1